[Event "Titled Tuesday Blitz January 10 Late 2023"]
[White "Filgueira, Hernan"]
[Black "Urbina Perez, Juan Antonio"]
[WhiteFideId "101770"]
[BlackFideId "2217368"]
[WhiteElo "2283"]
[BlackElo "2266"]
[Result "1-0"]
[Round "07"]
[TimeControl "180+2"]
[Date "2023.01.10"]
[WhiteClock "0:00:46"]
[BlackClock "0:00:06"]

1. b3 {[%clk 0:00:00]}  e5 {[%clk 0:00:00]} 2. Bb2 {[%clk 0:03:00]}  Nc6 {[%clk 0:02:53]} 3. e3 {[%clk 0:02:59]}  Nf6 {[%clk 0:02:54]} 4. c4 {[%clk 0:02:59]}  d6 {[%clk 0:02:54]} 5. Nc3 {[%clk 0:02:57]}  g6 {[%clk 0:02:48]} 6. Nf3 {[%clk 0:02:55]}  Bg7 {[%clk 0:02:48]} 7. d4 {[%clk 0:02:51]}  O-O {[%clk 0:02:48]} 8. dxe5 {[%clk 0:02:51]}  Nxe5 {[%clk 0:02:38]} 9. Be2 {[%clk 0:02:50]}  Bf5 {[%clk 0:02:33]} 10. Nd4 {[%clk 0:02:49]}  Bd7 {[%clk 0:02:14]} 11. O-O {[%clk 0:02:48]}  Nc6 {[%clk 0:02:12]} 12. Qd2 {[%clk 0:02:41]}  Re8 {[%clk 0:02:12]} 13. Rae1 {[%clk 0:02:26]}  a6 {[%clk 0:01:49]} 14. Bf3 {[%clk 0:02:22]}  Rb8 {[%clk 0:01:35]} 15. Rd1 {[%clk 0:02:04]}  Nxd4 {[%clk 0:01:28]} 16. Qxd4 {[%clk 0:01:56]}  Ne4 {[%clk 0:01:23]} 17. Qxg7+ {[%clk 0:01:56]}  Kxg7 {[%clk 0:01:21]} 18. Nxe4+ {[%clk 0:01:42]}  Kf8 {[%clk 0:01:17]} 19. Nf6 {[%clk 0:01:42]}  Re6 {[%clk 0:01:13]} 20. Nd5 {[%clk 0:01:40]}  Bc6 {[%clk 0:01:08]} 21. Rd4 {[%clk 0:01:32]}  Bxd5 {[%clk 0:01:03]} 22. Bxd5 {[%clk 0:01:29]}  Re5 {[%clk 0:00:58]} 23. Rf4 {[%clk 0:01:28]}  Rf5 {[%clk 0:00:54]} 24. Rg4 {[%clk 0:01:27]}  c6 {[%clk 0:00:53]} 25. Bf3 {[%clk 0:01:17]}  Qe7 {[%clk 0:00:35]} 26. Rd4 {[%clk 0:01:14]}  Rd8 {[%clk 0:00:24]} 27. Rfd1 {[%clk 0:01:10]}  c5 {[%clk 0:00:24]} 28. R4d2 {[%clk 0:01:07]}  Rxf3 {[%clk 0:00:22]} 29. gxf3 {[%clk 0:01:06]}  Qg5+ {[%clk 0:00:20]} 30. Kf1 {[%clk 0:01:06]}  Ke7 {[%clk 0:00:20]} 31. Ke2 {[%clk 0:01:05]}  Qh5 {[%clk 0:00:20]} 32. Ba3 {[%clk 0:01:04]}  b6 {[%clk 0:00:19]} 33. b4 {[%clk 0:00:52]}  h6 {[%clk 0:00:18]} 34. bxc5 {[%clk 0:00:49]}  bxc5 {[%clk 0:00:13]} 35. Rd5 {[%clk 0:00:49]}  Qxh2 {[%clk 0:00:14]} 36. Bxc5 {[%clk 0:00:49]}  h5 {[%clk 0:00:12]} 37. Bb6 {[%clk 0:00:47]}  Rd7 {[%clk 0:00:13]} 38. c5 {[%clk 0:00:46]}  h4 {[%clk 0:00:12]} 39. c6 {[%clk 0:00:46]}  h3 {[%clk 0:00:06]} 40. c7 {[%clk 0:00:46]} 1-0


[Site "https://www.chess.com"]

[Event "Titled Tuesday Blitz January 10 Late 2023"]
[White "Malka, Samuel"]
[Black "Hamitevici, Vladimir"]
[WhiteFideId "20643675"]
[BlackFideId "13902393"]
[WhiteElo "2165"]
[BlackElo "2496"]
[Result "1-0"]
[Round "07"]
[TimeControl "180+2"]
[Date "2023.01.10"]
[WhiteClock "0:00:54"]
[BlackClock "0:01:45"]

1. d4 {[%clk 0:00:00]}  e6 {[%clk 0:00:00]} 2. c4 {[%clk 0:03:00]}  Nf6 {[%clk 0:02:55]} 3. Nf3 {[%clk 0:03:00]}  Nc6 {[%clk 0:02:54]} 4. g3 {[%clk 0:02:59]}  g6 {[%clk 0:02:52]} 5. Bg2 {[%clk 0:02:58]}  Bg7 {[%clk 0:02:51]} 6. O-O {[%clk 0:02:56]}  d5 {[%clk 0:02:52]} 7. b3 {[%clk 0:02:57]}  O-O {[%clk 0:02:46]} 8. e3 {[%clk 0:02:56]}  Re8 {[%clk 0:02:41]} 9. Bb2 {[%clk 0:02:51]}  b6 {[%clk 0:02:36]} 10. Ne5 {[%clk 0:02:48]}  Bb7 {[%clk 0:02:30]} 11. Nd2 {[%clk 0:02:38]}  Nxe5 {[%clk 0:02:29]} 12. dxe5 {[%clk 0:02:30]}  Nd7 {[%clk 0:02:24]} 13. f4 {[%clk 0:02:31]}  Nc5 {[%clk 0:02:20]} 14. Qc2 {[%clk 0:02:12]}  dxc4 {[%clk 0:02:18]} 15. Bxb7 {[%clk 0:01:59]}  cxb3 {[%clk 0:02:16]} 16. Nxb3 {[%clk 0:02:00]}  Nxb7 {[%clk 0:02:14]} 17. Rfd1 {[%clk 0:01:38]}  Qc8 {[%clk 0:02:12]} 18. Qc6 {[%clk 0:01:39]}  Bf8 {[%clk 0:02:03]} 19. Rd7 {[%clk 0:01:36]}  Nc5 {[%clk 0:01:47]} 20. Rxc7 {[%clk 0:01:18]}  Qa6 {[%clk 0:01:45]} 21. Bd4 {[%clk 0:01:07]}  Qb5 {[%clk 0:01:45]} 22. Qxb5 {[%clk 0:00:54]} 1-0


[Site "https://www.chess.com"]

[Event "Titled Tuesday Blitz January 10 Late 2023"]
[White "Sebag, Marie"]
[Black "Ongut, Tamas Gunes"]
[WhiteFideId "617822"]
[BlackFideId "770280"]
[WhiteElo "2430"]
[BlackElo "2299"]
[Result "1-0"]
[Round "07"]
[TimeControl "180+2"]
[Date "2023.01.10"]
[WhiteClock "0:00:06"]
[BlackClock "0:00:06"]

1. c4 {[%clk 0:00:00]}  g6 {[%clk 0:00:00]} 2. Nc3 {[%clk 0:03:00]}  Bg7 {[%clk 0:02:56]} 3. g3 {[%clk 0:03:00]}  d6 {[%clk 0:02:57]} 4. Bg2 {[%clk 0:03:00]}  e5 {[%clk 0:02:53]} 5. Rb1 {[%clk 0:02:57]}  a5 {[%clk 0:02:53]} 6. d3 {[%clk 0:02:57]}  f5 {[%clk 0:02:48]} 7. e3 {[%clk 0:02:57]}  Nf6 {[%clk 0:02:43]} 8. Nge2 {[%clk 0:02:57]}  c6 {[%clk 0:02:43]} 9. O-O {[%clk 0:02:56]}  O-O {[%clk 0:02:39]} 10. a3 {[%clk 0:02:53]}  Be6 {[%clk 0:02:39]} 11. b4 {[%clk 0:02:53]}  axb4 {[%clk 0:02:37]} 12. axb4 {[%clk 0:02:53]}  Nbd7 {[%clk 0:02:38]} 13. b5 {[%clk 0:02:53]}  d5 {[%clk 0:02:38]} 14. bxc6 {[%clk 0:02:53]}  bxc6 {[%clk 0:02:32]} 15. cxd5 {[%clk 0:02:43]}  cxd5 {[%clk 0:02:31]} 16. d4 {[%clk 0:02:43]}  e4 {[%clk 0:02:31]} 17. Qb3 {[%clk 0:02:43]}  Rb8 {[%clk 0:02:27]} 18. Qa2 {[%clk 0:02:32]}  Rxb1 {[%clk 0:02:21]} 19. Nxb1 {[%clk 0:02:32]}  Qa8 {[%clk 0:02:20]} 20. Ba3 {[%clk 0:02:32]}  Rc8 {[%clk 0:02:06]} 21. Nbc3 {[%clk 0:02:24]}  Qa5 {[%clk 0:01:59]} 22. Ra1 {[%clk 0:02:20]}  Rxc3 {[%clk 0:01:54]} 23. Nxc3 {[%clk 0:02:04]}  Qxc3 {[%clk 0:01:42]} 24. Rc1 {[%clk 0:02:02]}  Qa5 {[%clk 0:01:43]} 25. Rc8+ {[%clk 0:01:53]}  Nf8 {[%clk 0:01:40]} 26. Rb8 {[%clk 0:01:53]}  Nd7 {[%clk 0:01:33]} 27. Rb1 {[%clk 0:01:51]}  Nb6 {[%clk 0:01:10]} 28. Ra1 {[%clk 0:01:35]}  Nc4 {[%clk 0:00:55]} 29. Bc5 {[%clk 0:01:22]}  Qxa2 {[%clk 0:00:54]} 30. Rxa2 {[%clk 0:01:19]}  Nd7 {[%clk 0:00:53]} 31. Bb4 {[%clk 0:01:20]}  Bf8 {[%clk 0:00:52]} 32. Bc3 {[%clk 0:01:18]}  Nd6 {[%clk 0:00:49]} 33. Bf1 {[%clk 0:01:09]}  g5 {[%clk 0:00:44]} 34. Ra8 {[%clk 0:01:08]}  Kf7 {[%clk 0:00:43]} 35. Bb4 {[%clk 0:01:03]}  Nc4 {[%clk 0:00:43]} 36. Bc3 {[%clk 0:00:57]}  Ndb6 {[%clk 0:00:40]} 37. Ra7+ {[%clk 0:00:49]}  Kg6 {[%clk 0:00:39]} 38. Be2 {[%clk 0:00:48]}  h5 {[%clk 0:00:40]} 39. Kf1 {[%clk 0:00:47]}  g4 {[%clk 0:00:36]} 40. Ke1 {[%clk 0:00:45]}  Bd6 {[%clk 0:00:36]} 41. Ra6 {[%clk 0:00:44]}  Kf6 {[%clk 0:00:24]} 42. Ra7 {[%clk 0:00:42]}  Bd7 {[%clk 0:00:22]} 43. Bxc4 {[%clk 0:00:38]}  dxc4 {[%clk 0:00:20]} 44. d5+ {[%clk 0:00:30]}  Ke7 {[%clk 0:00:20]} 45. Ra5 {[%clk 0:00:30]}  Na4 {[%clk 0:00:18]} 46. Kd2 {[%clk 0:00:28]}  Nc5 {[%clk 0:00:15]} 47. Ra7 {[%clk 0:00:25]}  Nd3 {[%clk 0:00:15]} 48. Bd4 {[%clk 0:00:22]}  Bb4+ {[%clk 0:00:15]} 49. Bc3 {[%clk 0:00:19]}  Bxc3+ {[%clk 0:00:14]} 50. Kxc3 {[%clk 0:00:16]}  Nxf2 {[%clk 0:00:13]} 51. Kxc4 {[%clk 0:00:16]}  Nd1 {[%clk 0:00:14]} 52. Kd4 {[%clk 0:00:15]}  Kd6 {[%clk 0:00:14]} 53. Ra6+ {[%clk 0:00:15]}  Kc7 {[%clk 0:00:12]} 54. Ra7+ {[%clk 0:00:14]}  Kd6 {[%clk 0:00:12]} 55. Ra6+ {[%clk 0:00:14]}  Ke7 {[%clk 0:00:12]} 56. Rh6 {[%clk 0:00:14]}  Nf2 {[%clk 0:00:12]} 57. Rxh5 {[%clk 0:00:14]}  Nh3 {[%clk 0:00:10]} 58. Rh7+ {[%clk 0:00:14]}  Kd6 {[%clk 0:00:09]} 59. Rh6+ {[%clk 0:00:13]}  Kc7 {[%clk 0:00:09]} 60. Kc5 {[%clk 0:00:14]}  Ng1 {[%clk 0:00:08]} 61. d6+ {[%clk 0:00:13]}  Kd8 {[%clk 0:00:08]} 62. Rh8+ {[%clk 0:00:12]}  Be8 {[%clk 0:00:08]} 63. Kd5 {[%clk 0:00:12]}  Nf3 {[%clk 0:00:08]} 64. Ke6 {[%clk 0:00:12]}  Ng5+ {[%clk 0:00:08]} 65. Kxf5 {[%clk 0:00:12]}  Nf7 {[%clk 0:00:08]} 66. Rf8 {[%clk 0:00:12]}  Nxd6+ {[%clk 0:00:08]} 67. Kxg4 {[%clk 0:00:11]}  Ke7 {[%clk 0:00:09]} 68. Rf1 {[%clk 0:00:11]}  Bd7+ {[%clk 0:00:08]} 69. Kf4 {[%clk 0:00:11]}  Bh3 {[%clk 0:00:09]} 70. Ra1 {[%clk 0:00:10]}  Bg2 {[%clk 0:00:09]} 71. Ra7+ {[%clk 0:00:09]}  Ke6 {[%clk 0:00:08]} 72. Ra6 {[%clk 0:00:09]}  Kd5 {[%clk 0:00:09]} 73. Ra5+ {[%clk 0:00:09]}  Ke6 {[%clk 0:00:09]} 74. h4 {[%clk 0:00:09]}  Nc4 {[%clk 0:00:09]} 75. Rc5 {[%clk 0:00:08]}  Nd2 {[%clk 0:00:10]} 76. g4 {[%clk 0:00:08]}  Nf3 {[%clk 0:00:07]} 77. h5 {[%clk 0:00:07]}  Ne1 {[%clk 0:00:07]} 78. Rc6+ {[%clk 0:00:07]}  Kf7 {[%clk 0:00:05]} 79. Rc7+ {[%clk 0:00:06]}  Ke6 {[%clk 0:00:06]} 80. h6 {[%clk 0:00:06]}  Nd3+ {[%clk 0:00:06]} 81. Kg3 {[%clk 0:00:06]}  Kd6 {[%clk 0:00:06]} 82. Ra7 {[%clk 0:00:06]} 1-0


[Site "https://www.chess.com"]

[Event "Titled Tuesday Blitz January 10 Late 2023"]
[White "Lopez Gracia, Fernando"]
[Black "Sargsyan, Anna M."]
[WhiteFideId "2207184"]
[BlackFideId "13308130"]
[WhiteElo "2255"]
[BlackElo "2375"]
[Result "0-1"]
[Round "07"]
[TimeControl "180+2"]
[Date "2023.01.10"]
[WhiteClock "0:01:38"]
[BlackClock "0:02:14"]

1. c4 {[%clk 0:00:00]}  c6 {[%clk 0:00:00]} 2. d4 {[%clk 0:02:51]}  d5 {[%clk 0:02:57]} 3. cxd5 {[%clk 0:02:49]}  cxd5 {[%clk 0:02:58]} 4. Bf4 {[%clk 0:02:50]}  Nc6 {[%clk 0:02:58]} 5. e3 {[%clk 0:02:50]}  Nf6 {[%clk 0:02:58]} 6. Nc3 {[%clk 0:02:50]}  Bf5 {[%clk 0:02:58]} 7. Qb3 {[%clk 0:02:50]}  Na5 {[%clk 0:02:59]} 8. Qa4+ {[%clk 0:02:37]}  Bd7 {[%clk 0:02:57]} 9. Qc2 {[%clk 0:02:37]}  e6 {[%clk 0:02:57]} 10. Bd3 {[%clk 0:02:37]}  Rc8 {[%clk 0:02:58]} 11. Nf3 {[%clk 0:02:37]}  Be7 {[%clk 0:02:58]} 12. h3 {[%clk 0:02:35]}  O-O {[%clk 0:02:55]} 13. O-O {[%clk 0:02:35]}  h6 {[%clk 0:02:53]} 14. Rfc1 {[%clk 0:02:31]}  a6 {[%clk 0:02:54]} 15. Qe2 {[%clk 0:02:30]}  b5 {[%clk 0:02:54]} 16. Ne5 {[%clk 0:02:26]}  Nc4 {[%clk 0:02:50]} 17. b3 {[%clk 0:02:24]}  Nb6 {[%clk 0:02:48]} 18. a4 {[%clk 0:02:13]}  b4 {[%clk 0:02:34]} 19. Nd1 {[%clk 0:02:08]}  a5 {[%clk 0:02:34]} 20. Rxc8 {[%clk 0:02:04]}  Qxc8 {[%clk 0:02:34]} 21. Ba6 {[%clk 0:01:52]}  Qa8 {[%clk 0:02:30]} 22. Rc1 {[%clk 0:01:49]}  Ne4 {[%clk 0:02:30]} 23. f3 {[%clk 0:01:47]}  Nf6 {[%clk 0:02:27]} 24. Nb2 {[%clk 0:01:39]}  Rd8 {[%clk 0:02:17]} 25. Ned3 {[%clk 0:01:38]}  Qxa6 {[%clk 0:02:14]} 0-1


[Site "https://www.chess.com"]

[Event "Titled Tuesday Blitz January 10 Late 2023"]
[White "Le Goff, Ronan"]
[Black "Janaszak, Dawid"]
[WhiteFideId "612073"]
[BlackFideId "1119206"]
[WhiteElo "2320"]
[BlackElo "2316"]
[Result "0-1"]
[Round "07"]
[TimeControl "180+2"]
[Date "2023.01.10"]
[WhiteClock "0:00:06"]
[BlackClock "0:00:19"]

1. d4 {[%clk 0:00:00]}  d5 {[%clk 0:00:00]} 2. c4 {[%clk 0:02:55]}  e6 {[%clk 0:03:00]} 3. Nc3 {[%clk 0:02:40]}  c5 {[%clk 0:02:59]} 4. e3 {[%clk 0:02:26]}  Nf6 {[%clk 0:02:58]} 5. cxd5 {[%clk 0:02:20]}  exd5 {[%clk 0:02:57]} 6. Nf3 {[%clk 0:02:18]}  Nc6 {[%clk 0:02:56]} 7. Bb5 {[%clk 0:02:18]}  a6 {[%clk 0:02:55]} 8. Bxc6+ {[%clk 0:02:14]}  bxc6 {[%clk 0:02:51]} 9. Ne5 {[%clk 0:02:12]}  Qc7 {[%clk 0:02:52]} 10. Qa4 {[%clk 0:02:10]}  Bb7 {[%clk 0:02:46]} 11. Nd3 {[%clk 0:02:07]}  c4 {[%clk 0:02:37]} 12. Nf4 {[%clk 0:02:02]}  Qd7 {[%clk 0:02:31]} 13. O-O {[%clk 0:01:56]}  Bd6 {[%clk 0:02:15]} 14. e4 {[%clk 0:01:49]}  dxe4 {[%clk 0:02:14]} 15. Re1 {[%clk 0:01:46]}  O-O {[%clk 0:02:01]} 16. Qxc4 {[%clk 0:01:36]}  Rfe8 {[%clk 0:02:00]} 17. Be3 {[%clk 0:01:33]}  Nd5 {[%clk 0:01:54]} 18. Ncxd5 {[%clk 0:01:31]}  cxd5 {[%clk 0:01:53]} 19. Qb3 {[%clk 0:01:27]}  Rab8 {[%clk 0:01:53]} 20. Rac1 {[%clk 0:01:25]}  Qf5 {[%clk 0:01:50]} 21. Ne2 {[%clk 0:01:22]}  h5 {[%clk 0:01:40]} 22. Ng3 {[%clk 0:01:17]}  Qg6 {[%clk 0:01:37]} 23. Nf1 {[%clk 0:01:11]}  h4 {[%clk 0:01:37]} 24. Qa4 {[%clk 0:01:03]}  Red8 {[%clk 0:01:33]} 25. Rc3 {[%clk 0:00:57]}  Bc8 {[%clk 0:01:20]} 26. Bc1 {[%clk 0:00:50]}  h3 {[%clk 0:01:14]} 27. Ng3 {[%clk 0:00:45]}  f5 {[%clk 0:01:10]} 28. Qa5 {[%clk 0:00:39]}  Bd7 {[%clk 0:01:06]} 29. Qxd5+ {[%clk 0:00:35]}  Be6 {[%clk 0:00:58]} 30. Qc6 {[%clk 0:00:33]}  Bb4 {[%clk 0:00:58]} 31. d5 {[%clk 0:00:27]}  Bf7 {[%clk 0:00:43]} 32. Qxg6 {[%clk 0:00:17]}  Bxg6 {[%clk 0:00:44]} 33. Bf4 {[%clk 0:00:16]}  Bxc3 {[%clk 0:00:44]} 34. bxc3 {[%clk 0:00:13]}  Rbc8 {[%clk 0:00:42]} 35. d6 {[%clk 0:00:12]}  Rxc3 {[%clk 0:00:42]} 36. gxh3 {[%clk 0:00:11]}  Rc2 {[%clk 0:00:41]} 37. h4 {[%clk 0:00:11]}  Rxa2 {[%clk 0:00:38]} 38. h5 {[%clk 0:00:10]}  Bh7 {[%clk 0:00:37]} 39. Rc1 {[%clk 0:00:10]}  a5 {[%clk 0:00:37]} 40. Rc7 {[%clk 0:00:10]}  Ra1+ {[%clk 0:00:36]} 41. Kg2 {[%clk 0:00:10]}  Rf8 {[%clk 0:00:27]} 42. Be5 {[%clk 0:00:10]}  Rf7 {[%clk 0:00:23]} 43. Rxf7 {[%clk 0:00:09]}  Kxf7 {[%clk 0:00:22]} 44. Bxa1 {[%clk 0:00:07]}  Ke6 {[%clk 0:00:23]} 45. Bxg7 {[%clk 0:00:07]}  Kxd6 {[%clk 0:00:23]} 46. Bb2 {[%clk 0:00:06]}  f4 {[%clk 0:00:23]} 47. Nf1 {[%clk 0:00:07]}  Kd5 {[%clk 0:00:22]} 48. Bc1 {[%clk 0:00:05]}  f3+ {[%clk 0:00:20]} 49. Kg3 {[%clk 0:00:05]}  a4 {[%clk 0:00:19]} 50. Ne3+ {[%clk 0:00:05]}  Kd4 {[%clk 0:00:20]} 51. Kf4 {[%clk 0:00:05]}  Kd3 {[%clk 0:00:20]} 52. h4 {[%clk 0:00:05]}  Ke2 {[%clk 0:00:19]} 53. h6 {[%clk 0:00:04]}  Kxf2 {[%clk 0:00:19]} 54. Ng4+ {[%clk 0:00:03]}  Kg2 {[%clk 0:00:19]} 55. Ne3+ {[%clk 0:00:03]}  Kf2 {[%clk 0:00:18]} 56. Ng4+ {[%clk 0:00:03]}  Kg2 {[%clk 0:00:18]} 57. Ne3+ {[%clk 0:00:03]}  Kh3 {[%clk 0:00:19]} 58. Kg5 {[%clk 0:00:04]}  f2 {[%clk 0:00:19]} 59. Nf1 {[%clk 0:00:04]}  Kg2 {[%clk 0:00:19]} 60. Ne3+ {[%clk 0:00:04]}  Kf3 {[%clk 0:00:19]} 61. h5 {[%clk 0:00:04]}  a3 {[%clk 0:00:19]} 62. Bxa3 {[%clk 0:00:04]}  Kxe3 {[%clk 0:00:18]} 63. Bc5+ {[%clk 0:00:04]}  Kf3 {[%clk 0:00:18]} 64. Bxf2 {[%clk 0:00:05]}  Kxf2 {[%clk 0:00:18]} 65. Kf6 {[%clk 0:00:05]}  e3 {[%clk 0:00:19]} 66. Kg7 {[%clk 0:00:06]}  e2 {[%clk 0:00:20]} 67. Kxh7 {[%clk 0:00:07]}  e1=Q {[%clk 0:00:19]} 68. Kg7 {[%clk 0:00:07]}  Qe5+ {[%clk 0:00:20]} 69. Kg8 {[%clk 0:00:07]}  Qe6+ {[%clk 0:00:20]} 70. Kg7 {[%clk 0:00:07]}  Qg4+ {[%clk 0:00:20]} 71. Kh8 {[%clk 0:00:07]}  Qc8+ {[%clk 0:00:20]} 72. Kg7 {[%clk 0:00:05]}  Qd7+ {[%clk 0:00:17]} 73. Kg8 {[%clk 0:00:06]}  Qe8+ {[%clk 0:00:18]} 74. Kg7 {[%clk 0:00:06]}  Qe7+ {[%clk 0:00:18]} 75. Kg8 {[%clk 0:00:06]}  Qg5+ {[%clk 0:00:18]} 76. Kh7 {[%clk 0:00:07]}  Qxh5 {[%clk 0:00:19]} 77. Kg7 {[%clk 0:00:05]}  Qg5+ {[%clk 0:00:19]} 78. Kh7 {[%clk 0:00:06]}  Kf3 {[%clk 0:00:19]} 79. Kh8 {[%clk 0:00:03]}  Qxh6+ {[%clk 0:00:18]} 80. Kg8 {[%clk 0:00:04]}  Qb6 {[%clk 0:00:19]} 81. Kh8 {[%clk 0:00:04]}  Kf4 {[%clk 0:00:18]} 82. Kh7 {[%clk 0:00:05]}  Kg5 {[%clk 0:00:19]} 83. Kh8 {[%clk 0:00:06]}  Qb7 {[%clk 0:00:19]} 0-1


[Site "https://www.chess.com"]

[Event "Titled Tuesday Blitz January 10 Late 2023"]
[White "Andreev, Eduard"]
[Black "Goncalves, Davi Sulzbacher"]
[WhiteFideId "14103400"]
[BlackFideId "2154510"]
[WhiteElo "2413"]
[BlackElo "2282"]
[Result "1/2-1/2"]
[Round "07"]
[TimeControl "180+2"]
[Date "2023.01.10"]
[WhiteClock "0:00:30"]
[BlackClock "0:00:25"]

1. e4 {[%clk 0:00:00]}  c5 {[%clk 0:00:00]} 2. Nf3 {[%clk 0:03:00]}  Nc6 {[%clk 0:02:59]} 3. Bb5 {[%clk 0:03:00]}  g6 {[%clk 0:02:57]} 4. Bxc6 {[%clk 0:03:00]}  dxc6 {[%clk 0:02:57]} 5. d3 {[%clk 0:02:59]}  Bg7 {[%clk 0:02:57]} 6. h3 {[%clk 0:02:54]}  Nf6 {[%clk 0:02:57]} 7. Nc3 {[%clk 0:02:50]}  e5 {[%clk 0:02:56]} 8. Nxe5 {[%clk 0:02:43]}  Nxe4 {[%clk 0:02:56]} 9. Nxe4 {[%clk 0:02:29]}  Bxe5 {[%clk 0:02:54]} 10. Bh6 {[%clk 0:02:30]}  f5 {[%clk 0:02:53]} 11. Ng5 {[%clk 0:02:20]}  Bd7 {[%clk 0:02:24]} 12. O-O {[%clk 0:02:03]}  Qf6 {[%clk 0:01:55]} 13. f4 {[%clk 0:02:01]}  Bxb2 {[%clk 0:01:54]} 14. Re1+ {[%clk 0:01:38]}  Kd8 {[%clk 0:01:36]} 15. Rb1 {[%clk 0:01:24]}  Kc7 {[%clk 0:01:35]} 16. Kh2 {[%clk 0:01:10]}  Rae8 {[%clk 0:01:31]} 17. Nf3 {[%clk 0:00:56]}  Bc3 {[%clk 0:01:26]} 18. Rxe8 {[%clk 0:00:45]}  Rxe8 {[%clk 0:01:16]} 19. Bg5 {[%clk 0:00:42]}  Qd6 {[%clk 0:01:17]} 20. Rb3 {[%clk 0:00:43]}  Bg7 {[%clk 0:01:16]} 21. Qd2 {[%clk 0:00:38]}  h6 {[%clk 0:01:14]} 22. Bh4 {[%clk 0:00:33]}  b6 {[%clk 0:01:08]} 23. Bg3 {[%clk 0:00:33]}  Be6 {[%clk 0:01:04]} 24. c4 {[%clk 0:00:32]}  Rd8 {[%clk 0:00:57]} 25. Qc2 {[%clk 0:00:21]}  Bf7 {[%clk 0:00:51]} 26. a4 {[%clk 0:00:20]}  a5 {[%clk 0:00:43]} 27. Ne5 {[%clk 0:00:19]}  Bxe5 {[%clk 0:00:27]} 28. fxe5 {[%clk 0:00:14]}  Qe6 {[%clk 0:00:20]} 29. Qb2 {[%clk 0:00:15]}  Rb8 {[%clk 0:00:20]} 30. Be1 {[%clk 0:00:12]}  Qd7 {[%clk 0:00:20]} 31. Rxb6 {[%clk 0:00:08]}  Rxb6 {[%clk 0:00:12]} 32. Bxa5 {[%clk 0:00:07]}  Qd4 {[%clk 0:00:08]} 33. Qxb6+ {[%clk 0:00:06]}  Kd7 {[%clk 0:00:06]} 34. Qc7+ {[%clk 0:00:06]}  Ke6 {[%clk 0:00:06]} 35. Qxc6+ {[%clk 0:00:05]}  Ke7 {[%clk 0:00:05]} 36. Qf6+ {[%clk 0:00:05]}  Ke8 {[%clk 0:00:04]} 37. Bd2 {[%clk 0:00:05]}  g5 {[%clk 0:00:04]} 38. Qh8+ {[%clk 0:00:03]}  Ke7 {[%clk 0:00:02]} 39. Qf6+ {[%clk 0:00:02]}  Ke8 {[%clk 0:00:02]} 40. Qxf5 {[%clk 0:00:03]}  Qd7 {[%clk 0:00:03]} 41. Qf6 {[%clk 0:00:03]}  Qe6 {[%clk 0:00:02]} 42. Qxe6+ {[%clk 0:00:03]}  Bxe6 {[%clk 0:00:02]} 43. Be3 {[%clk 0:00:03]}  Bf5 {[%clk 0:00:02]} 44. Bxc5 {[%clk 0:00:04]}  Bxd3 {[%clk 0:00:02]} 45. Bd6 {[%clk 0:00:05]}  Bxc4 {[%clk 0:00:02]} 46. Kg3 {[%clk 0:00:05]}  Kd7 {[%clk 0:00:03]} 47. Kg4 {[%clk 0:00:05]}  Ke6 {[%clk 0:00:04]} 48. Kh5 {[%clk 0:00:06]}  Bf1 {[%clk 0:00:03]} 49. Kxh6 {[%clk 0:00:06]}  Bxg2 {[%clk 0:00:03]} 50. Kxg5 {[%clk 0:00:05]}  Bxh3 {[%clk 0:00:04]} 51. Kf4 {[%clk 0:00:05]}  Bg2 {[%clk 0:00:04]} 52. Ke3 {[%clk 0:00:06]}  Kd5 {[%clk 0:00:05]} 53. Kf4 {[%clk 0:00:07]}  Bh3 {[%clk 0:00:05]} 54. Kg5 {[%clk 0:00:07]}  Bc8 {[%clk 0:00:05]} 55. Kf6 {[%clk 0:00:07]}  Bd7 {[%clk 0:00:06]} 56. a5 {[%clk 0:00:08]}  Bc8 {[%clk 0:00:05]} 57. Ke7 {[%clk 0:00:08]}  Kc6 {[%clk 0:00:06]} 58. Kd8 {[%clk 0:00:08]}  Bg4 {[%clk 0:00:06]} 59. Ke7 {[%clk 0:00:07]}  Kb7 {[%clk 0:00:06]} 60. Bc5 {[%clk 0:00:08]}  Ka8 {[%clk 0:00:06]} 61. Kd8 {[%clk 0:00:08]}  Bh3 {[%clk 0:00:07]} 62. Kc7 {[%clk 0:00:07]}  Bg4 {[%clk 0:00:07]} 63. Kd6 {[%clk 0:00:08]}  Bh3 {[%clk 0:00:08]} 64. Be3 {[%clk 0:00:08]}  Bg4 {[%clk 0:00:09]} 65. Kc5 {[%clk 0:00:08]}  Bh3 {[%clk 0:00:09]} 66. Kb6 {[%clk 0:00:09]}  Bg4 {[%clk 0:00:09]} 67. Kc7 {[%clk 0:00:10]}  Bh3 {[%clk 0:00:10]} 68. Kd8 {[%clk 0:00:11]}  Bg4 {[%clk 0:00:10]} 69. Ke7 {[%clk 0:00:12]}  Bh3 {[%clk 0:00:11]} 70. Kf6 {[%clk 0:00:13]}  Bg4 {[%clk 0:00:11]} 71. Kg5 {[%clk 0:00:13]}  Bh3 {[%clk 0:00:12]} 72. Kh4 {[%clk 0:00:14]}  Bc8 {[%clk 0:00:12]} 73. Kg3 {[%clk 0:00:15]}  Be6 {[%clk 0:00:13]} 74. Kf3 {[%clk 0:00:15]}  Bc8 {[%clk 0:00:13]} 75. Kf2 {[%clk 0:00:16]}  Be6 {[%clk 0:00:14]} 76. Ke1 {[%clk 0:00:17]}  Bc8 {[%clk 0:00:15]} 77. Kd2 {[%clk 0:00:18]}  Be6 {[%clk 0:00:15]} 78. Kc2 {[%clk 0:00:19]}  Bd7 {[%clk 0:00:16]} 79. Kc3 {[%clk 0:00:20]}  Be6 {[%clk 0:00:17]} 80. Kb4 {[%clk 0:00:21]}  Bd7 {[%clk 0:00:17]} 81. Kc5 {[%clk 0:00:21]}  Be6 {[%clk 0:00:18]} 82. Kd6 {[%clk 0:00:22]}  Bf5 {[%clk 0:00:19]} 83. Ke7 {[%clk 0:00:23]}  Bg4 {[%clk 0:00:20]} 84. Kf6 {[%clk 0:00:22]}  Bh3 {[%clk 0:00:20]} 85. a6 {[%clk 0:00:23]}  Bg4 {[%clk 0:00:19]} 86. Kg5 {[%clk 0:00:24]}  Be6 {[%clk 0:00:19]} 87. Kh6 {[%clk 0:00:24]}  Bd7 {[%clk 0:00:20]} 88. Kg7 {[%clk 0:00:24]}  Be6 {[%clk 0:00:20]} 89. Kf8 {[%clk 0:00:24]}  Bf5 {[%clk 0:00:20]} 90. Ke7 {[%clk 0:00:25]}  Bg4 {[%clk 0:00:20]} 91. Kd6 {[%clk 0:00:25]}  Bh3 {[%clk 0:00:21]} 92. Kc5 {[%clk 0:00:26]}  Bg4 {[%clk 0:00:21]} 93. Kb4 {[%clk 0:00:26]}  Bf5 {[%clk 0:00:22]} 94. Kc3 {[%clk 0:00:27]}  Be6 {[%clk 0:00:22]} 95. Kd4 {[%clk 0:00:27]}  Bd7 {[%clk 0:00:23]} 96. Ke4 {[%clk 0:00:28]}  Be6 {[%clk 0:00:23]} 97. Kf4 {[%clk 0:00:29]}  Bd7 {[%clk 0:00:24]} 98. Kg3 {[%clk 0:00:29]}  Bc8 {[%clk 0:00:24]} 99. Kh4 {[%clk 0:00:29]}  Bxa6 {[%clk 0:00:24]} 100. Kg5 {[%clk 0:00:29]}  Bc4 {[%clk 0:00:24]} 101. Kf6 {[%clk 0:00:30]}  Bb3 {[%clk 0:00:25]} 102. e6 {[%clk 0:00:30]}  Bxe6 {[%clk 0:00:25]} 1/2-1/2


[Site "https://www.chess.com"]